[Event "CZE-ch Amateurs 2022"]
[Site "Luhacovice"]
[Date "2022.03.12"]
[Round "1.8"]
[White "Cagasik, Tomas"]
[Black "Sedy, Matej"]
[Result "1-0"]
[ECO "A05"]
[WhiteElo "2177"]
[BlackElo "1548"]
[Annotator "ChessBase"]
[PlyCount "59"]
[EventDate "2022.03.12"]
[EventType "swiss"]
[EventCountry "CZE"]
[SourceTitle "playchess.com"]
[Source "ChessBase"]
[SourceQuality "1"]
[TimeControl "5400+30"]

1. Nf3 {[%emt 0:00:06]} Nf6 {[%emt 0:00:41]} 2. b3 {[%emt 0:00:08]} g6 {[%emt 0:01:46]} 3. Bb2 {[%emt 0:00:06]} Bg7 {[%emt 0:00:25]} 4. g3 {[%emt 0:00:13]} d5 {[%emt 0:01:33]} 5. c4 {[%emt 0:00:34]} Nc6 {[%emt 0:02:23]} 6. cxd5 {[%emt 0:00:59]} Qxd5 {[%emt 0:01:56]} 7. Bg2 {[%emt 0:02:11]} Bg4 {[%emt 0:04:27]} 8. Nc3 {[%emt 0:03:23]} Qd7 {[%emt 0:03:45]} 9. h3 {[%emt 0:01:28]} Bf5 {[%emt 0:03:11]} 10. g4 {[%emt 0:01:41]} Be6 {[%emt 0:03:48]} 11. Ng5 {[%emt 0:03:26]} Nd5 {[%emt 0:03:36]} 12. Nxe6 {[%emt 0:01:43]} fxe6 {[%emt 0:01:14]} 13. Qc1 {[%emt 0:04:48]} Nf4 {[%emt 0:03:01]} 14. Be4 {[%emt 0:03:29]} O-O {[%emt 0:12:19]} 15. Na4 {[%emt 0:04:19]} Ne5 {[%emt 0:05:34]} 16. Qc2 {[%emt 0:13:52]} Rad8 {[%emt 0:05:08]} 17. d4 {[%emt 0:03:20]} Nc6 {[%emt 0:15:06]} 18. e3 {[%emt 0:01:56]} Nxd4 {[%emt 0:04:56]} 19. exd4 {[%emt 0:00:46]} Bxd4 {[%emt 0:00:55]} 20. O-O-O {[%emt 0:00:46]} Bxb2+ {[%emt 0:04:11]} 21. Kxb2 {[%emt 0:00:41]} Qc8 {[%emt 0:02:12]} 22. h4 {[%emt 0:01:31]} Nd5 {[%emt 0:04:36]} 23. h5 {[%emt 0:01:41]} Nb4 {[%emt 0:01:47]} 24. Qc5 {[%emt 0:00:36]} Nd5 {[%emt 0:02:48]} 25. hxg6 {[%emt 0:00:50]} hxg6 {[%emt 0:01:11]} 26. Bxd5 {[%emt 0:04:29]} exd5 {[%emt 0:01:39]} 27. Qd4 {[%emt 0:00:56]} Kf7 {[%emt 0:02:28]} 28. Rh7+ {[%emt 0:00:14]} Ke8 {[%emt 0:00:37]} 29. Re1 {[%emt 0:00:10]} Qd7 {[%emt 0:00:58]} 30. Nc5 {[%emt 0:00:24]} 1-0

[Event "CZE-ch Amateurs 2022"]
[Site "Luhacovice"]
[Date "2022.03.12"]
[Round "1.9"]
[White "Vlcek, Vojtech"]
[Black "Husek, Martin"]
[Result "1-0"]
[ECO "A58"]
[WhiteElo "1546"]
[BlackElo "2167"]
[Annotator "ChessBase"]
[PlyCount "81"]
[EventDate "2022.03.12"]
[EventType "swiss"]
[EventCountry "CZE"]
[SourceTitle "playchess.com"]
[Source "ChessBase"]
[SourceQuality "1"]
[TimeControl "5400+30"]

1. d4 {[%emt 0:00:33]} Nf6 {[%emt 0:00:10]} 2. c4 {[%emt 0:00:24]} c5 {[%emt 0:00:12]} 3. d5 {[%emt 0:00:19]} b5 {[%emt 0:00:11]} 4. cxb5 {[%emt 0:00:30]} a6 {[%emt 0:00:11]} 5. bxa6 {[%emt 0:01:08]} Bxa6 {[%emt 0:00:16]} 6. Nc3 {[%emt 0:00:44]} d6 {[%emt 0:00:12]} 7. g3 {[%emt 0:00:55]} g6 {[%emt 0:00:09]} 8. Nf3 {[%emt 0:01:27]} Bg7 {[%emt 0:00:09]} 9. Bg2 {[%emt 0:00:40]} O-O {[%emt 0:00:11]} 10. O-O {[%emt 0:00:44]} Nbd7 {[%emt 0:00:13]} 11. Rb1 {[%emt 0:02:05]} Qb6 {[%emt 0:00:55]} 12. b3 {[%emt 0:00:56]} Rfb8 {[%emt 0:02:28]} 13. Qc2 {[%emt 0:02:42]} Ne8 {[%emt 0:10:31]} 14. Bb2 {[%emt 0:04:25]} Nc7 {[%emt 0:00:30]} 15. Na4 {[%emt 0:03:06]} Qb7 {[%emt 0:13:01]} 16. Bxg7 {[%emt 0:01:42]} Kxg7 {[%emt 0:00:10]} 17. Nc3 {[%emt 0:00:14]} Nb5 {[%emt 0:04:19]} 18. Nxb5 {[%emt 0:03:23]} Bxb5 {[%emt 0:00:13]} 19. Rfe1 {[%emt 0:02:30]} Kg8 {[%emt 0:00:28]} 20. a4 {[%emt 0:05:02]} Ba6 {[%emt 0:00:10]} 21. e4 {[%emt 0:03:30]} Qb4 {[%emt 0:06:02]} 22. e5 {[%emt 0:02:39]} dxe5 {[%emt 0:00:16]} 23. Nxe5 {[%emt 0:00:21]} Nxe5 {[%emt 0:00:12]} 24. Rxe5 {[%emt 0:00:29]} c4 {[%emt 0:00:12]} 25. Re3 {[%emt 0:02:36]} Bc8 {[%emt 0:04:07]} 26. Rc1 {[%emt 0:02:20]} cxb3 {[%emt 0:04:07]} 27. Qb2 {[%emt 0:02:30]} Bd7 {[%emt 0:47:32]} 28. d6 {[%emt 0:02:31]} Ra6 {[%emt 0:03:11]} 29. dxe7 {[%emt 0:01:06]} Re6 {[%emt 0:00:11]} 30. Rec3 {[%emt 0:08:48]} Rxe7 {[%emt 0:03:10]} 31. a5 {[%emt 0:04:19]} Rbe8 {[%emt 0:01:10]} 32. h3 {[%emt 0:03:14]} Re1+ {[%emt 0:00:51]} 33. Rxe1 {[%emt 0:00:43]} Rxe1+ {[%emt 0:00:04]} 34. Kh2 {[%emt 0:00:10]} Be6 {[%emt 0:00:33]} 35. a6 {[%emt 0:03:39]} Qa5 {[%emt 0:00:08]} 36. Rd3 {[%emt 0:02:44]} Qe5 {[%emt 0:01:31]} 37. Qxe5 {[%emt 0:07:10]} Rxe5 {[%emt 0:00:20]} 38. a7 {[%emt 0:00:04]} Ra5 {[%emt 0:00:37]} 39. Rd8+ {[%emt 0:00:43]} Kg7 {[%emt 0:00:08]} 40. a8=Q {[%emt 0:00:09]} Rxa8 {[%emt 0:00:20]} 41. Rxa8 {[%emt 0:00:03]} 1-0

[Event "CZE-ch Amateurs 2022"]
[Site "Luhacovice"]
[Date "2022.03.12"]
[Round "1.10"]
[White "Sremanak, Slavomir"]
[Black "Psotka, Tomas"]
[Result "1-0"]
[ECO "B40"]
[WhiteElo "2187"]
[BlackElo "1538"]
[Annotator "ChessBase"]
[PlyCount "79"]
[EventDate "2022.03.12"]
[EventType "swiss"]
[EventCountry "CZE"]
[SourceTitle "playchess.com"]
[Source "ChessBase"]
[SourceQuality "1"]
[TimeControl "5400+30"]

1. e4 {[%emt 0:00:37]} e6 {[%emt 0:01:18]} 2. c4 {[%emt 0:00:20]} c5 {[%emt 0:00:38]} 3. Nc3 {[%emt 0:00:08]} Nc6 {[%emt 0:01:15]} 4. Nf3 {[%emt 0:00:06]} Nge7 {[%emt 0:02:51]} 5. d4 {[%emt 0:05:14]} cxd4 {[%emt 0:02:41]} 6. Nxd4 {[%emt 0:01:35]} Nxd4 {[%emt 0:00:26]} 7. Qxd4 {[%emt 0:00:06]} Nc6 {[%emt 0:00:22]} 8. Qe3 {[%emt 0:02:00]} b6 {[%emt 0:06:13]} 9. Be2 {[%emt 0:01:04]} Nb4 {[%emt 0:00:46]} 10. Qd2 {[%emt 0:01:13]} Be7 {[%emt 0:09:54]} 11. O-O {[%emt 0:00:13]} O-O {[%emt 0:04:17]} 12. Rd1 {[%emt 0:00:30]} h6 {[%emt 0:05:16]} 13. a3 {[%emt 0:00:24]} Na6 {[%emt 0:01:53]} 14. b4 {[%emt 0:00:09]} Nc7 {[%emt 0:02:32]} 15. e5 {[%emt 0:06:19]} Re8 {[%emt 0:06:04]} 16. Bb2 {[%emt 0:03:02]} Bf8 {[%emt 0:00:16]} 17. Bf3 {[%emt 0:03:38]} Rb8 {[%emt 0:00:26]} 18. Rac1 {[%emt 0:00:28]} Re7 {[%emt 0:01:17]} 19. Ne4 {[%emt 0:02:15]} Bb7 {[%emt 0:06:24]} 20. Qf4 {[%emt 0:00:19]} Bxe4 {[%emt 0:05:56]} 21. Bxe4 {[%emt 0:00:07]} Re8 {[%emt 0:00:13]} 22. Rc3 {[%emt 0:03:19]} Qe7 {[%emt 0:09:33]} 23. Bc2 {[%emt 0:00:50]} Red8 {[%emt 0:01:38]} 24. Qe4 {[%emt 0:00:50]} g6 {[%emt 0:00:15]} 25. h4 {[%emt 0:00:16]} h5 {[%emt 0:03:14]} 26. Rcd3 {[%emt 0:03:04]} b5 {[%emt 0:02:35]} 27. c5 {[%emt 0:01:50]} Nd5 {[%emt 0:01:39]} 28. Bc1 {[%emt 0:01:29]} Rdc8 {[%emt 0:01:20]} 29. Bb3 {[%emt 0:00:20]} Bg7 {[%emt 0:04:54]} 30. Bg5 {[%emt 0:00:56]} Qe8 {[%emt 0:00:11]} 31. Bxd5 {[%emt 0:01:37]} exd5 {[%emt 0:00:23]} 32. Qxd5 {[%emt 0:00:20]} Qxe5 {[%emt 0:08:06]} 33. Qf3 {[%emt 0:00:09]} Qe6 {[%emt 0:04:52]} 34. Rxd7 {[%emt 0:00:17]} Ra8 {[%emt 0:01:33]} 35. Re7 {[%emt 0:02:20]} Qc4 {[%emt 0:00:27]} 36. Rdd7 {[%emt 0:00:25]} Rf8 {[%emt 0:04:43]} 37. Rxf7 {[%emt 0:00:14]} Rxf7 {[%emt 0:00:38]} 38. Qxa8+ {[%emt 0:01:05]} Rf8 {[%emt 0:01:02]} 39. Rxg7+ {[%emt 0:02:26]} Kxg7 {[%emt 0:01:25]} 40. Bh6+ {[%emt 0:00:06]} 1-0

[Event "CZE-ch Amateurs 2022"]
[Site "Luhacovice"]
[Date "2022.03.12"]
[Round "1.11"]
[White "Bata, Jiri"]
[Black "Novotny, Jaroslav"]
[Result "0-1"]
[ECO "B08"]
[WhiteElo "1535"]
[BlackElo "2190"]
[Annotator "ChessBase"]
[PlyCount "54"]
[EventDate "2022.03.12"]
[EventType "swiss"]
[EventCountry "CZE"]
[SourceTitle "playchess.com"]
[Source "ChessBase"]
[SourceQuality "1"]
[TimeControl "5400+30"]

1. e4 {[%emt 0:01:47]} g6 {[%emt 0:00:30]} 2. d4 {[%emt 0:00:30]} Bg7 {[%emt 0:00:08]} 3. Nf3 {[%emt 0:01:34]} d6 {[%emt 0:00:45]} 4. Be2 {[%emt 0:03:57]} Nf6 {[%emt 0:01:07]} 5. Nc3 {[%emt 0:00:44]} O-O {[%emt 0:00:24]} 6. O-O {[%emt 0:01:53]} e6 {[%emt 0:01:52]} 7. Bg5 {[%emt 0:05:57]} h6 {[%emt 0:00:49]} 8. Bxf6 {[%emt 0:01:59]} Qxf6 {[%emt 0:00:59]} 9. Qd2 {[%emt 0:08:22]} a6 {[%emt 0:07:32]} 10. Rad1 {[%emt 0:04:24]} Nc6 {[%emt 0:04:01]} 11. Rfe1 {[%emt 0:05:08]} e5 {[%emt 0:07:22]} 12. d5 {[%emt 0:03:14]} Nd4 {[%emt 0:00:56]} 13. Nxd4 {[%emt 0:02:14]} exd4 {[%emt 0:00:04]} 14. Nb1 {[%emt 0:01:07]} Re8 {[%emt 0:07:10]} 15. Qd3 {[%emt 0:02:00]} c5 {[%emt 0:03:55]} 16. c4 {[%emt 0:03:23]} Bd7 {[%emt 0:03:53]} 17. Nd2 {[%emt 0:03:21]} b5 {[%emt 0:00:59]} 18. b3 {[%emt 0:00:57]} Rab8 {[%emt 0:05:43]} 19. Rc1 {[%emt 0:04:34]} h5 {[%emt 0:02:28]} 20. h3 {[%emt 0:01:36]} Bh6 {[%emt 0:01:35]} 21. f3 {[%emt 0:03:08]} bxc4 {[%emt 0:10:04]} 22. bxc4 {[%emt 0:01:39]} Bxh3 {[%emt 0:01:03]} 23. Rc2 {[%emt 0:05:43]} Be3+ {[%emt 0:04:30]} 24. Kh2 {[%emt 0:03:07]} Bf2 {[%emt 0:04:40]} 25. Rf1 {[%emt 0:04:20]} Qf4+ {[%emt 0:00:43]} 26. Kh1 {[%emt 0:00:59]} Bxg2+ {[%emt 0:00:10]} 27. Kxg2 {[%emt 0:00:56]} Qg3+ {[%emt 0:00:06]} 0-1

[Event "CZE-ch Amateurs 2022"]
[Site "Luhacovice"]
[Date "2022.03.12"]
[Round "1.12"]
[White "Zvolensky, David"]
[Black "Vyvial, Vaclav"]
[Result "1-0"]
[ECO "B86"]
[WhiteElo "2159"]
[BlackElo "1527"]
[Annotator "ChessBase"]
[PlyCount "85"]
[EventDate "2022.03.12"]
[EventType "swiss"]
[EventCountry "CZE"]
[SourceTitle "playchess.com"]
[Source "ChessBase"]
[SourceQuality "1"]
[TimeControl "5400+30"]

1. e4 {[%emt 0:00:12]} c5 {[%emt 0:00:11]} 2. Nf3 {[%emt 0:00:07]} d6 {[%emt 0:00:14]} 3. d4 {[%emt 0:00:05]} cxd4 {[%emt 0:00:34]} 4. Nxd4 {[%emt 0:00:02]} Nf6 {[%emt 0:00:50]} 5. Nc3 {[%emt 0:00:06]} a6 {[%emt 0:01:05]} 6. Bc4 {[%emt 0:00:06]} e6 {[%emt 0:00:16]} 7. Bb3 {[%emt 0:00:05]} Be7 {[%emt 0:00:45]} 8. O-O {[%emt 0:00:08]} O-O {[%emt 0:00:40]} 9. f4 {[%emt 0:00:14]} Nbd7 {[%emt 0:02:26]} 10. Qf3 {[%emt 0:00:40]} Nc5 {[%emt 0:01:35]} 11. Be3 {[%emt 0:00:11]} Qc7 {[%emt 0:02:57]} 12. a3 {[%emt 0:03:50]} Nxb3 {[%emt 0:01:30]} 13. cxb3 {[%emt 0:00:46]} Rb8 {[%emt 0:04:39]} 14. Rac1 {[%emt 0:00:12]} Qa5 {[%emt 0:04:54]} 15. b4 {[%emt 0:00:59]} Qh5 {[%emt 0:02:04]} 16. Qxh5 {[%emt 0:00:02]} Nxh5 {[%emt 0:00:23]} 17. e5 {[%emt 0:00:04]} g6 {[%emt 0:03:16]} 18. Ne4 {[%emt 0:03:55]} Rd8 {[%emt 0:03:40]} 19. Rc7 {[%emt 0:01:21]} d5 {[%emt 0:04:21]} 20. Rxe7 {[%emt 0:00:32]} dxe4 {[%emt 0:00:16]} 21. Rc1 {[%emt 0:00:05]} Ng7 {[%emt 0:03:29]} 22. g4 {[%emt 0:00:27]} Ne8 {[%emt 0:03:33]} 23. Nb3 {[%emt 0:00:50]} b6 {[%emt 0:03:33]} 24. Nd2 {[%emt 0:01:29]} Kf8 {[%emt 0:02:27]} 25. Ra7 {[%emt 0:00:07]} Rb7 {[%emt 0:01:49]} 26. Rxb7 {[%emt 0:00:10]} Bxb7 {[%emt 0:00:05]} 27. Rc2 {[%emt 0:01:26]} b5 {[%emt 0:02:52]} 28. Kf2 {[%emt 0:03:31]} Kg7 {[%emt 0:02:21]} 29. Nb3 {[%emt 0:00:43]} Rc8 {[%emt 0:02:23]} 30. Rxc8 {[%emt 0:01:36]} Bxc8 {[%emt 0:00:04]} 31. Bb6 {[%emt 0:00:03]} f5 {[%emt 0:02:29]} 32. exf6+ {[%emt 0:01:20]} Nxf6 {[%emt 0:01:32]} 33. Bd4 {[%emt 0:00:05]} Kf7 {[%emt 0:00:48]} 34. Bxf6 {[%emt 0:00:08]} Kxf6 {[%emt 0:00:07]} 35. Nc5 {[%emt 0:01:37]} h6 {[%emt 0:02:36]} 36. Nxe4+ {[%emt 0:00:24]} Ke7 {[%emt 0:03:15]} 37. Kf3 {[%emt 0:01:35]} Bb7 {[%emt 0:00:30]} 38. Ke3 {[%emt 0:00:02]} Bxe4 {[%emt 0:01:04]} 39. Kxe4 {[%emt 0:00:02]} Kd6 {[%emt 0:01:27]} 40. h4 {[%emt 0:00:18]} Ke7 {[%emt 0:01:34]} 41. Ke5 {[%emt 0:00:05]} Kf7 {[%emt 0:00:32]} 42. g5 {[%emt 0:00:08]} h5 {[%emt 0:00:32]} 43. Kd6 {[%emt 0:00:05]} 1-0

[Event "CZE-ch Amateurs 2022"]
[Site "Luhacovice"]
[Date "2022.03.12"]
[Round "1.13"]
[White "Zemek, Antonin"]
[Black "Lorenc, Tomas"]
[Result "0-1"]
[ECO "A30"]
[WhiteElo "1484"]
[BlackElo "2183"]
[Annotator "ChessBase"]
[PlyCount "101"]
[EventDate "2022.03.12"]
[EventType "swiss"]
[EventCountry "CZE"]
[SourceTitle "playchess.com"]
[Source "ChessBase"]
[SourceQuality "1"]
[TimeControl "5400+30"]

1. Nf3 {[%emt 0:00:11]} Nf6 {[%emt 0:00:13]} 2. c4 {[%emt 0:00:24]} g6 {[%emt 0:00:12]} 3. b3 {[%emt 0:00:50]} Bg7 {[%emt 0:00:50]} 4. Bb2 {[%emt 0:00:48]} O-O {[%emt 0:00:09]} 5. e3 {[%emt 0:00:15]} c5 {[%emt 0:01:05]} 6. d3 {[%emt 0:00:31]} d5 {[%emt 0:03:34]} 7. Be2 {[%emt 0:00:53]} Nc6 {[%emt 0:02:24]} 8. O-O {[%emt 0:00:48]} d4 {[%emt 0:05:12]} 9. a3 {[%emt 0:00:55]} a5 {[%emt 0:08:27]} 10. Nbd2 {[%emt 0:01:37]} dxe3 {[%emt 0:02:40]} 11. fxe3 {[%emt 0:00:16]} Ng4 {[%emt 0:00:22]} 12. Bxg7 {[%emt 0:01:45]} Nxe3 {[%emt 0:00:20]} 13. Qc1 {[%emt 0:00:35]} Nxf1 {[%emt 0:01:01]} 14. Bxf8 {[%emt 0:01:01]} Nxd2 {[%emt 0:00:24]} 15. Qxd2 {[%emt 0:00:18]} Qxf8 {[%emt 0:00:53]} 16. Rf1 {[%emt 0:00:35]} Qg7 {[%emt 0:06:07]} 17. Ng5 {[%emt 0:01:23]} Qd4+ {[%emt 0:08:40]} 18. Kh1 {[%emt 0:00:22]} f6 {[%emt 0:05:46]} 19. Nf3 {[%emt 0:01:27]} Qd6 {[%emt 0:00:23]} 20. h3 {[%emt 0:02:33]} Kg7 {[%emt 0:05:35]} 21. Nh4 {[%emt 0:01:23]} Qg3 {[%emt 0:02:12]} 22. Nf3 {[%emt 0:00:41]} Bf5 {[%emt 0:05:08]} 23. Qe3 {[%emt 0:00:47]} b6 {[%emt 0:04:24]} 24. b4 {[%emt 0:01:03]} axb4 {[%emt 0:01:57]} 25. axb4 {[%emt 0:00:09]} Qd6 {[%emt 0:10:53]} 26. Nh4 {[%emt 0:02:06]} Nd4 {[%emt 0:01:13]} 27. bxc5 {[%emt 0:00:41]} bxc5 {[%emt 0:00:10]} 28. Nxf5+ {[%emt 0:00:46]} gxf5 {[%emt 0:00:44]} 29. Bf3 {[%emt 0:02:49]} Ra2 {[%emt 0:02:37]} 30. Re1 {[%emt 0:01:05]} e6 {[%emt 0:02:26]} 31. Rb1 {[%emt 0:00:53]} Kg6 {[%emt 0:00:47]} 32. h4 {[%emt 0:00:41]} h5 {[%emt 0:01:01]} 33. Bd1 {[%emt 0:00:41]} Qe5 {[%emt 0:00:47]} 34. Qh3 {[%emt 0:02:20]} Qe1+ {[%emt 0:05:06]} 35. Kh2 {[%emt 0:00:07]} Kh6 {[%emt 0:00:15]} 36. Rb8 {[%emt 0:05:10]} Qe5+ {[%emt 0:01:34]} 37. Qg3 {[%emt 0:00:07]} Qxg3+ {[%emt 0:00:06]} 38. Kxg3 {[%emt 0:00:12]} Rd2 {[%emt 0:00:02]} 39. Bxh5 {[%emt 0:01:09]} Kxh5 {[%emt 0:00:44]} 40. Kf4 {[%emt 0:00:06]} e5+ {[%emt 0:00:34]} 41. Kg3 {[%emt 0:00:21]} Rxd3+ {[%emt 0:00:13]} 42. Kf2 {[%emt 0:00:08]} Kxh4 {[%emt 0:00:19]} 43. Rg8 {[%emt 0:00:13]} f4 {[%emt 0:00:47]} 44. g4 {[%emt 0:00:36]} Rd2+ {[%emt 0:00:43]} 45. Ke1 {[%emt 0:00:28]} Re2+ {[%emt 0:00:07]} 46. Kf1 {[%emt 0:00:06]} Ra2 {[%emt 0:01:09]} 47. g5 {[%emt 0:00:11]} fxg5 {[%emt 0:00:14]} 48. Re8 {[%emt 0:00:09]} Ra1+ {[%emt 0:00:26]} 49. Kf2 {[%emt 0:00:07]} g4 {[%emt 0:00:16]} 50. Rxe5 {[%emt 0:00:14]} g3+ {[%emt 0:00:10]} 51. Kg2 {[%emt 0:00:11]} 0-1

[Event "CZE-ch Amateurs 2022"]
[Site "Luhacovice"]
[Date "2022.03.12"]
[Round "1.14"]
[White "Zabystrzan, Pavel"]
[Black "Cizek, Jan"]
[Result "1-0"]
[ECO "A11"]
[WhiteElo "2162"]
[BlackElo "1708"]
[Annotator "ChessBase"]
[PlyCount "73"]
[EventDate "2022.03.12"]
[EventType "swiss"]
[EventCountry "CZE"]
[SourceTitle "playchess.com"]
[Source "ChessBase"]
[SourceQuality "1"]
[TimeControl "5400+30"]

1. Nf3 {[%emt 0:03:23]} Nf6 {[%emt 0:01:36]} 2. g3 {[%emt 0:00:08]} g6 {[%emt 0:00:06]} 3. b3 {[%emt 0:00:09]} Bg7 {[%emt 0:00:15]} 4. Bb2 {[%emt 0:00:06]} d5 {[%emt 0:01:31]} 5. Bg2 {[%emt 0:00:14]} O-O {[%emt 0:00:47]} 6. O-O {[%emt 0:00:21]} Bf5 {[%emt 0:01:51]} 7. c4 {[%emt 0:00:35]} c6 {[%emt 0:01:26]} 8. d3 {[%emt 0:00:16]} e6 {[%emt 0:04:01]} 9. Nbd2 {[%emt 0:05:33]} h6 {[%emt 0:10:26]} 10. Qc2 {[%emt 0:06:20]} g5 {[%emt 0:03:48]} 11. Bc3 {[%emt 0:03:25]} Nbd7 {[%emt 0:05:24]} 12. Qb2 {[%emt 0:00:15]} Qe7 {[%emt 0:03:48]} 13. Ne5 {[%emt 0:03:13]} Nxe5 {[%emt 0:02:31]} 14. Bxe5 {[%emt 0:00:09]} Ne8 {[%emt 0:02:04]} 15. Bxg7 {[%emt 0:02:54]} Nxg7 {[%emt 0:00:09]} 16. b4 {[%emt 0:01:20]} b5 {[%emt 0:04:40]} 17. cxb5 {[%emt 0:02:33]} cxb5 {[%emt 0:00:16]} 18. Rfc1 {[%emt 0:00:21]} Rac8 {[%emt 0:00:16]} 19. a3 {[%emt 0:00:18]} Qd7 {[%emt 0:08:04]} 20. Nb3 {[%emt 0:00:56]} Rxc1+ {[%emt 0:01:28]} 21. Rxc1 {[%emt 0:00:09]} Rc8 {[%emt 0:00:40]} 22. Nc5 {[%emt 0:00:40]} Qd6 {[%emt 0:00:08]} 23. e4 {[%emt 0:04:35]} dxe4 {[%emt 0:01:03]} 24. dxe4 {[%emt 0:00:13]} Bg6 {[%emt 0:02:25]} 25. e5 {[%emt 0:01:42]} Qe7 {[%emt 0:04:47]} 26. Qe2 {[%emt 0:01:59]} Qe8 {[%emt 0:02:44]} 27. Bf1 {[%emt 0:03:39]} Rb8 {[%emt 0:01:45]} 28. Rd1 {[%emt 0:00:44]} a5 {[%emt 0:05:49]} 29. Nd7 {[%emt 0:00:36]} Qc8 {[%emt 0:04:54]} 30. Nxb8 {[%emt 0:00:20]} Qxb8 {[%emt 0:00:07]} 31. Qxb5 {[%emt 0:00:59]} Qxb5 {[%emt 0:00:09]} 32. Bxb5 {[%emt 0:00:09]} axb4 {[%emt 0:00:10]} 33. axb4 {[%emt 0:00:15]} Be4 {[%emt 0:01:13]} 34. Rd8+ {[%emt 0:00:14]} Kh7 {[%emt 0:00:14]} 35. Bd3 {[%emt 0:00:09]} Bxd3 {[%emt 0:00:20]} 36. Rxd3 {[%emt 0:00:10]} Ne8 {[%emt 0:00:21]} 37. b5 {[%emt 0:00:23]} 1-0

[Event "CZE-ch Amateurs 2022"]
[Site "Luhacovice"]
[Date "2022.03.12"]
[Round "1.15"]
[White "Licek, Prokop"]
[Black "Buchcar, Tomas"]
[Result "0-1"]
[ECO "E38"]
[WhiteElo "1511"]
[BlackElo "2121"]
[Annotator "ChessBase"]
[PlyCount "136"]
[EventDate "2022.03.12"]
[EventType "swiss"]
[EventCountry "CZE"]
[SourceTitle "playchess.com"]
[Source "ChessBase"]
[SourceQuality "1"]
[TimeControl "5400+30"]

1. d4 {[%emt 0:00:08]} Nf6 {[%emt 0:00:14]} 2. c4 {[%emt 0:00:24]} e6 {[%emt 0:00:20]} 3. Nc3 {[%emt 0:00:05]} Bb4 {[%emt 0:01:04]} 4. Qc2 {[%emt 0:00:01]} c5 {[%emt 0:01:55]} 5. e3 {[%emt 0:02:19]} Nc6 {[%emt 0:03:06]} 6. Nf3 {[%emt 0:01:17]} O-O {[%emt 0:12:44]} 7. Bd3 {[%emt 0:07:35]} d5 {[%emt 0:04:40]} 8. dxc5 {[%emt 0:12:50]} Bxc5 {[%emt 0:05:40]} 9. a3 {[%emt 0:03:58]} dxc4 {[%emt 0:01:41]} 10. Bxc4 {[%emt 0:00:02]} a6 {[%emt 0:00:16]} 11. b4 {[%emt 0:04:24]} Be7 {[%emt 0:00:09]} 12. O-O {[%emt 0:01:04]} b5 {[%emt 0:00:25]} 13. Be2 {[%emt 0:03:34]} Bb7 {[%emt 0:00:21]} 14. Rd1 {[%emt 0:01:13]} Qb6 {[%emt 0:00:40]} 15. Bb2 {[%emt 0:01:21]} Rac8 {[%emt 0:02:28]} 16. Rac1 {[%emt 0:04:26]} h6 {[%emt 0:03:25]} 17. h3 {[%emt 0:01:01]} Rfd8 {[%emt 0:02:19]} 18. Rxd8+ {[%emt 0:01:20]} Rxd8 {[%emt 0:00:14]} 19. Rd1 {[%emt 0:02:17]} Kf8 {[%emt 0:00:34]} 20. Rxd8+ {[%emt 0:00:32]} Qxd8 {[%emt 0:00:07]} 21. Qd2 {[%emt 0:03:29]} Qd6 {[%emt 0:03:01]} 22. Qd3 {[%emt 0:07:56]} Nb8 {[%emt 0:02:54]} 23. Qxd6 {[%emt 0:06:15]} Bxd6 {[%emt 0:00:06]} 24. Nd4 {[%emt 0:01:34]} Nbd7 {[%emt 0:00:21]} 25. Bf3 {[%emt 0:02:07]} Bxf3 {[%emt 0:00:18]} 26. Nxf3 {[%emt 0:00:02]} Nb6 {[%emt 0:00:20]} 27. Nd2 {[%emt 0:01:13]} Ke7 {[%emt 0:02:57]} 28. Kf1 {[%emt 0:03:53]} g6 {[%emt 0:04:08]} 29. Ke2 {[%emt 0:00:51]} Nfd7 {[%emt 0:00:37]} 30. f4 {[%emt 0:01:43]} e5 {[%emt 0:00:44]} 31. Kf3 {[%emt 0:01:51]} exf4 {[%emt 0:02:03]} 32. exf4 {[%emt 0:00:01]} f5 {[%emt 0:00:37]} 33. Ne2 {[%emt 0:01:48]} Nd5 {[%emt 0:02:53]} 34. g4 {[%emt 0:03:47]} Kf7 {[%emt 0:04:25]} 35. Nf1 {[%emt 0:04:53]} N7b6 {[%emt 0:01:45]} 36. gxf5 {[%emt 0:00:27]} gxf5 {[%emt 0:00:13]} 37. Nfg3 {[%emt 0:00:25]} Kg6 {[%emt 0:00:23]} 38. h4 {[%emt 0:02:56]} h5 {[%emt 0:00:29]} 39. Bc1 {[%emt 0:02:23]} Nc4 {[%emt 0:06:53]} 40. Nd4 {[%emt 0:01:04]} Ne7 {[%emt 0:00:12]} 41. Nge2 {[%emt 0:02:25]} Ng8 {[%emt 0:03:34]} 42. Ng3 {[%emt 0:00:22]} Nh6 {[%emt 0:00:43]} 43. Ne6 {[%emt 0:03:41]} Ng8 {[%emt 0:08:39]} 44. Nd4 {[%emt 0:01:08]} Ne7 {[%emt 0:00:03]} 45. Nge2 {[%emt 0:00:44]} Bc7 {[%emt 0:04:56]} 46. Ne6 {[%emt 0:02:38]} Bb6 {[%emt 0:00:12]} 47. Ng3 {[%emt 0:00:41]} Kh6 {[%emt 0:02:57]} 48. Nc5 {[%emt 0:01:20]} Bxc5 {[%emt 0:01:13]} 49. bxc5 {[%emt 0:00:01]} Kg6 {[%emt 0:00:15]} 50. Ne2 {[%emt 0:00:59]} Nc6 {[%emt 0:00:20]} 51. Kg3 {[%emt 0:01:00]} a5 {[%emt 0:01:45]} 52. Nc3 {[%emt 0:02:21]} b4 {[%emt 0:00:32]} 53. axb4 {[%emt 0:00:39]} axb4 {[%emt 0:00:06]} 54. Nb5 {[%emt 0:00:31]} b3 {[%emt 0:00:47]} 55. Kf3 {[%emt 0:00:28]} b2 {[%emt 0:00:46]} 56. Bxb2 {[%emt 0:00:01]} Nxb2 {[%emt 0:00:30]} 57. Ke3 {[%emt 0:00:53]} Kf6 {[%emt 0:00:49]} 58. Nc3 {[%emt 0:00:28]} Nc4+ {[%emt 0:04:20]} 59. Kf3 {[%emt 0:00:25]} Nd4+ {[%emt 0:00:00]} 60. Kg2 {[%emt 0:00:42]} Ke7 {[%emt 0:01:58]} 61. Nd5+ {[%emt 0:00:20]} Ke6 {[%emt 0:01:59]} 62. Nc7+ {[%emt 0:00:12]} Kf7 {[%emt 0:00:14]} 63. Nd5 {[%emt 0:00:30]} Na5 {[%emt 0:02:16]} 64. Nb4 {[%emt 0:00:53]} Nac6 {[%emt 0:00:47]} 65. Nd3 {[%emt 0:00:07]} Ke6 {[%emt 0:00:27]} 66. Kf2 {[%emt 0:00:44]} Kd5 {[%emt 0:00:09]} 67. Ke3 {[%emt 0:00:38]} Na5 {[%emt 0:02:29]} 68. Ne5 {[%emt 0:00:32]} Nc4+ {[%emt 0:00:09]} 0-1